[Event "Schack-SM 2022: Sverigemastarklassen"]
[Site "Fyrishov, Idrottsgatan 2, Uppsala, Sweden"]
[Date "2022.07.04"]
[Round "3.3"]
[White "Smith, Axel"]
[Black "Seo, Jung Min"]
[Result "0-1"]
[TimeControl "90 minutes for 40 moves + 30 minutes for the rest of the game + 30 seconds per move from move one."]
[WhiteTitle "GM"]
[BlackTitle "IM"]
[WhiteFideId "1707930"]
[BlackFideId "1734687"]
[WhiteElo "2417"]
[BlackElo "2492"]

1. c4 {[%clk 01:30:59]} e6 {[%clk 01:30:55]} {[%emt 00:00:06]} 2. Nc3 {[%clk
01:31:14]} {[%emt 00:00:15]} Bb4 {[%clk 01:31:23]} {[%emt 00:00:02]} 3. e4
{[%clk 01:31:12]} {[%emt 00:00:32]} Ne7 {[%clk 01:31:32]} {[%emt 00:00:20]} 4.
Nf3 {[%clk 01:30:48]} {[%emt 00:00:53]} O-O {[%clk 01:22:45]} {[%emt 00:09:18]}
5. d4 {[%clk 01:28:07]} {[%emt 00:03:11]} d6 {[%clk 01:21:50]} {[%emt
00:01:25]} 6. Be2 {[%clk 01:27:50]} {[%emt 00:00:47]} Nbc6 {[%clk 01:19:21]}
{[%emt 00:02:59]} 7. O-O {[%clk 01:20:16]} {[%emt 00:08:03]} e5 {[%clk
01:19:41]} {[%emt 00:00:10]} 8. dxe5 {[%clk 01:09:11]} {[%emt 00:11:36]} Nxe5
{[%clk 01:19:08]} {[%emt 00:01:03]} 9. Qc2 {[%clk 00:58:54]} {[%emt 00:10:47]}
N7c6 {[%clk 01:02:16]} {[%emt 00:17:23]} 10. Rd1 {[%clk 00:57:10]} {[%emt
00:02:13]} Nxf3+ {[%clk 01:01:21]} {[%emt 00:01:25]} 11. Bxf3 {[%clk 00:57:32]}
{[%emt 00:00:08]} Bc5 {[%clk 01:01:04]} {[%emt 00:00:47]} 12. Na4 {[%clk
00:47:01]} {[%emt 00:11:01]} Nd4 {[%clk 00:50:22]} {[%emt 00:11:13]} 13. Qc3
{[%clk 00:45:48]} {[%emt 00:01:43]} Qf6 {[%clk 00:49:01]} {[%emt 00:01:50]} 14.
Nxc5 {[%clk 00:46:04]} {[%emt 00:00:14]} dxc5 {[%clk 00:49:27]} {[%emt
00:00:04]} 15. Kh1 {[%clk 00:26:43]} {[%emt 00:19:51]} Qe5 {[%clk 00:39:46]}
{[%emt 00:10:11]} 16. Rg1 {[%clk 00:09:23]} {[%emt 00:17:50]} Be6 {[%clk
00:38:58]} {[%emt 00:01:18]} 17. Be3 {[%clk 00:08:48]} {[%emt 00:01:05]} Rfd8
{[%clk 00:38:27]} {[%emt 00:01:01]} 18. Bxd4 {[%clk 00:08:11]} {[%emt
00:01:07]} Rxd4 {[%clk 00:30:45]} {[%emt 00:08:12]} 19. b3 {[%clk 00:08:34]}
{[%emt 00:00:07]} b6 {[%clk 00:30:35]} {[%emt 00:00:40]} 20. Rad1 {[%clk
00:08:10]} {[%emt 00:00:54]} Rad8 {[%clk 00:29:31]} {[%emt 00:01:34]} 21. Qc2
{[%clk 00:05:58]} {[%emt 00:02:43]} a5 {[%clk 00:18:12]} {[%emt 00:11:48]} 22.
Rge1 {[%clk 00:06:10]} {[%emt 00:00:17]} g6 {[%clk 00:17:29]} {[%emt 00:01:14]}
23. Kg1 {[%clk 00:06:18]} {[%emt 00:00:22]} a4 {[%clk 00:17:37]} {[%emt
00:00:21]} 24. g3 {[%clk 00:04:00]} {[%emt 00:02:48]} R8d6 {[%clk 00:17:29]}
{[%emt 00:00:38]} 25. Kg2 {[%clk 00:02:56]} {[%emt 00:01:35]} h5 {[%clk
00:16:53]} {[%emt 00:01:05]} 26. h4 {[%clk 00:02:27]} {[%emt 00:01:00]} a3
{[%clk 00:14:13]} {[%emt 00:03:10]} 27. Rxd4 {[%clk 00:00:54]} {[%emt
00:02:03]} Qxd4 {[%clk 00:14:38]} {[%emt 00:00:05]} 28. Rc1 {[%emt 00:00:55]}
Qb2 {[%clk 00:14:48]} {[%emt 00:00:19]} 29. Qxb2 {[%clk 00:00:46]} {[%emt
00:00:15]} axb2 {[%clk 00:15:14]} {[%emt 00:00:03]} 30. Rb1 {[%clk 00:01:11]}
{[%emt 00:00:05]} Rd2 {[%clk 00:15:41]} {[%emt 00:00:04]} 31. Bd1 {[%clk
00:01:14]} {[%emt 00:00:26]} Bg4 {[%clk 00:15:52]} {[%emt 00:00:19]} 32. Bxg4
{[%clk 00:01:37]} {[%emt 00:00:07]} hxg4 {[%clk 00:16:18]} {[%emt 00:00:04]} 33.
a3 {[%clk 00:00:50]} {[%emt 00:01:18]} Kf8 {[%clk 00:16:38]} {[%emt 00:00:10]}
34. b4 {[%clk 00:00:57]} {[%emt 00:00:22]} cxb4 {[%clk 00:17:04]} {[%emt
00:00:04]} 35. axb4 {[%clk 00:00:53]} {[%emt 00:00:35]} Ke7 {[%clk 00:17:31]}
{[%emt 00:00:02]} 0-1

[Event "Schack-SM 2022: Sverigemastarklassen"]
[Site "Fyrishov, Idrottsgatan 2, Uppsala, Sweden"]
[Date "2022.07.04"]
[Round "3.4"]
[White "Blomqvist, Erik"]
[Black "Westerberg, Jonathan"]
[Result "1/2-1/2"]
[TimeControl "90 minutes for 40 moves + 30 minutes for the rest of the game + 30 seconds per move from move one."]
[WhiteTitle "GM"]
[BlackTitle "GM"]
[WhiteFideId "1709437"]
[BlackFideId "1701754"]
[WhiteElo "2521"]
[BlackElo "2476"]

1. e4 {[%clk 01:30:54]} {[%emt 00:00:05]} Nf6 {[%clk 01:30:09]} {[%emt
00:00:51]} 2. e5 {[%clk 01:31:10]} {[%emt 00:00:16]} Nd5 {[%clk 01:30:13]}
{[%emt 00:00:25]} 3. d4 {[%clk 01:31:26]} {[%emt 00:00:14]} d6 {[%clk
01:30:07]} {[%emt 00:00:34]} 4. Nf3 {[%emt 00:02:49]} dxe5 {[%clk 01:28:13]} 5.
Nxe5 {[%clk 01:31:49]} {[%emt 00:00:14]} c6 {[%clk 01:26:16]} {[%emt 00:02:25]}
6. Bc4 {[%clk 01:30:58]} {[%emt 00:01:23]} g6 {[%clk 01:23:14]} {[%emt
00:03:30]} 7. Nc3 {[%clk 01:24:07]} {[%emt 00:07:23]} Be6 {[%clk 01:19:27]}
{[%emt 00:04:16]} 8. Ne4 {[%clk 01:10:34]} {[%emt 00:14:03]} f6 {[%clk
01:16:51]} {[%emt 00:03:07]} 9. Nc5 {[%clk 01:10:25]} {[%emt 00:00:40]} Bg8
{[%clk 01:16:21]} {[%emt 00:00:58]} 10. Nf3 {[%clk 01:10:21]} {[%emt 00:00:35]}
b6 {[%clk 01:15:54]} {[%emt 00:00:58]} 11. Nd3 {[%clk 01:10:42]} {[%emt
00:00:08]} Nc3 {[%clk 01:07:30]} {[%emt 00:08:53]} 12. Qd2 {[%clk 01:01:38]}
{[%emt 00:09:35]} Bxc4 {[%clk 01:02:24]} {[%emt 00:05:37]} 13. Qxc3 {[%clk
01:02:01]} {[%emt 00:00:06]} Bd5 {[%clk 01:02:10]} {[%emt 00:00:43]} 14. Nf4
{[%clk 00:50:14]} {[%emt 00:12:18]} Qd7 {[%clk 00:53:18]} {[%emt 00:09:22]} 15.
O-O {[%clk 00:48:06]} {[%emt 00:02:38]} Bg7 {[%clk 00:52:11]} {[%emt 00:01:37]}
16. Re1 {[%clk 00:47:17]} {[%emt 00:01:19]} O-O {[%clk 00:50:56]} {[%emt
00:01:44]} 17. Bd2 {[%clk 00:44:26]} {[%emt 00:03:22]} Re8 {[%clk 00:45:25]}
{[%emt 00:06:01]} 18. Re2 {[%clk 00:42:21]} {[%emt 00:02:35]} Na6 {[%clk
00:43:05]} {[%emt 00:02:50]} 19. Rae1 {[%clk 00:34:34]} {[%emt 00:08:17]} Nc7
{[%clk 00:42:45]} {[%emt 00:00:50]} 20. Nxd5 {[%clk 00:34:46]} {[%emt
00:00:18]} cxd5 {[%clk 00:37:16]} {[%emt 00:05:59]} 21. Bf4 {[%clk 00:34:19]}
{[%emt 00:00:57]} Nb5 {[%clk 00:29:35]} {[%emt 00:08:11]} 22. Qd3 {[%clk
00:33:01]} {[%emt 00:01:48]} e6 {[%clk 00:29:04]} {[%emt 00:01:02]} 23. h4
{[%clk 00:33:06]} {[%emt 00:00:25]} Nd6 {[%clk 00:29:18]} {[%emt 00:00:16]} 24.
Bxd6 {[%clk 00:27:36]} {[%emt 00:05:59]} Qxd6 {[%clk 00:29:44]} {[%emt
00:00:04]} 25. h5 {[%clk 00:27:35]} {[%emt 00:00:31]} g5 {[%clk 00:22:49]}
{[%emt 00:07:24]} 26. Nh2 {[%clk 00:27:35]} {[%emt 00:00:31]} Qd7 {[%clk
00:18:48]} {[%emt 00:04:31]} 27. Ng4 {[%clk 00:26:27]} {[%emt 00:01:39]} Qf7
{[%clk 00:19:02]} {[%emt 00:00:15]} 28. h6 {[%clk 00:25:51]} {[%emt 00:01:06]}
Bf8 {[%clk 00:19:08]} {[%emt 00:00:24]} 29. c4 {[%clk 00:13:20]} {[%emt
00:13:01]} Rad8 {[%clk 00:08:03]} {[%emt 00:11:35]} 30. cxd5 {[%clk 00:02:58]}
{[%emt 00:10:52]} Rxd5 {[%clk 00:08:24]} {[%emt 00:00:09]} 31. Qc4 {[%clk
00:02:24]} {[%emt 00:01:05]} f5 {[%clk 00:03:34]} {[%emt 00:05:19]} 32. Ne5
{[%clk 00:02:50]} {[%emt 00:00:04]} Qf6 {[%clk 00:03:26]} {[%emt 00:00:39]} 33.
Nf3 {[%clk 00:01:45]} {[%emt 00:01:35]} Rd6 {[%clk 00:03:55]} 34. d5 {[%clk
00:00:36]} {[%emt 00:01:39]} exd5 {[%clk 00:03:45]} {[%emt 00:00:39]} 35. Qd4
{[%clk 00:00:32]} {[%emt 00:00:36]} Rxe2 {[%clk 00:00:43]} {[%emt 00:03:32]} 36.
Rxe2 {[%clk 00:01:00]} {[%emt 00:00:01]} Qxd4 {[%clk 00:00:44]} {[%emt
00:00:29]} 37. Nxd4 {[%clk 00:01:29]} f4 {[%clk 00:00:41]} {[%emt 00:00:33]} 38.
Re5 {[%clk 00:01:09]} {[%emt 00:00:49]} Kf7 {[%clk 00:00:35]} {[%emt 00:00:37]}
39. Rf5+ {[%clk 00:00:50]} {[%emt 00:00:50]} Ke8 {[%clk 00:00:36]} {[%emt
00:00:29]} 40. Rxg5 {[%clk 00:01:04]} {[%emt 00:00:16]} Bxh6 {[%clk 00:00:39]}
{[%emt 00:00:27]} 41. Rh5 {[%clk 00:29:25]} {[%emt 00:02:09]} Bg7 {[%clk
00:17:12]} {[%emt 00:13:55]} 42. Nf5 {[%clk 00:29:44]} {[%emt 00:00:13]} Rd7
{[%clk 00:17:36]} {[%emt 00:00:06]} 43. Nxg7+ {[%clk 00:30:05]} {[%emt
00:00:08]} Rxg7 {[%clk 00:18:03]} {[%emt 00:00:03]} 44. Rxd5 {[%clk 00:30:09]}
{[%emt 00:00:27]} Rc7 {[%clk 00:18:29]} {[%emt 00:00:04]} 45. Rd2 {[%clk
00:26:14]} {[%emt 00:04:26]} Rc1+ {[%clk 00:14:57]} {[%emt 00:04:02]} 46. Kh2
{[%clk 00:26:39]} {[%emt 00:00:05]} h5 {[%clk 00:15:17]} {[%emt 00:00:09]} 47.
f3 {[%clk 00:24:53]} {[%emt 00:02:16]} Ra1 {[%clk 00:13:13]} {[%emt 00:02:34]}
48. a3 {[%clk 00:23:17]} {[%emt 00:02:07]} Rb1 {[%clk 00:13:41]} {[%emt
00:00:01]} 49. b4 {[%clk 00:20:00]} {[%emt 00:03:47]} Ra1 {[%clk 00:13:04]}
{[%emt 00:01:07]} 50. b5 {[%clk 00:14:20]} {[%emt 00:06:10]} Rxa3 {[%clk
00:11:04]} {[%emt 00:02:30]} 51. Kh3 {[%clk 00:14:27]} {[%emt 00:00:23]} Ra5
{[%clk 00:10:12]} {[%emt 00:01:22]} 52. Rb2 {[%clk 00:14:23]} {[%emt 00:00:34]}
Kf7 {[%clk 00:10:33]} {[%emt 00:00:09]} 53. Kh4 {[%clk 00:14:41]} {[%emt
00:00:12]} Kg6 {[%clk 00:10:50]} {[%emt 00:00:11]} 54. Rb4 {[%clk 00:14:40]}
{[%emt 00:00:33]} Kh6 {[%clk 00:10:35]} {[%emt 00:00:44]} 1/2-1/2

[Event "Schack-SM 2022: Sverigemastarklassen"]
[Site "Fyrishov, Idrottsgatan 2, Uppsala, Sweden"]
[Date "2022.07.04"]
[Round "3.5"]
[White "Johansson, Linus"]
[Black "Carlsson, Ludvig"]
[Result "1-0"]
[TimeControl "90 minutes for 40 moves + 30 minutes for the rest of the game + 30 seconds per move from move one."]
[WhiteTitle "IM"]
[BlackTitle "IM"]
[WhiteFideId "1711113"]
[BlackFideId "1727010"]
[WhiteElo "2468"]
[BlackElo "2399"]

1. d4 {[%clk 01:30:57]} {[%emt 00:00:02]} d5 {[%clk 01:30:50]} {[%emt
00:00:10]} 2. c4 {[%clk 01:31:22]} {[%emt 00:00:05]} e6 {[%clk 01:31:13]}
{[%emt 00:00:07]} 3. Nf3 {[%clk 01:31:48]} {[%emt 00:00:05]} Nf6 {[%clk
01:31:12]} {[%emt 00:00:30]} 4. Nc3 {[%clk 01:32:10]} {[%emt 00:00:08]} Be7
{[%clk 01:31:22]} {[%emt 00:00:20]} 5. Bf4 {[%clk 01:32:32]} {[%emt 00:00:08]}
O-O {[%clk 01:31:43]} {[%emt 00:00:09]} 6. e3 {[%clk 01:32:59]} {[%emt
00:00:04]} b6 {[%clk 01:32:07]} {[%emt 00:00:06]} 7. Bd3 {[%clk 01:22:20]}
{[%emt 00:11:08]} c5 {[%clk 01:31:58]} {[%emt 00:00:39]} 8. dxc5 {[%clk
01:16:27]} {[%emt 00:06:22]} dxc4 {[%clk 01:28:04]} {[%emt 00:04:24]} 9. Bxc4
{[%clk 01:14:56]} {[%emt 00:02:03]} Bxc5 {[%clk 01:27:48]} {[%emt 00:00:45]} 10.
O-O {[%clk 01:07:24]} {[%emt 00:08:02]} Ba6 {[%clk 01:20:48]} {[%emt 00:07:30]}
11. Bxa6 {[%clk 01:05:17]} {[%emt 00:02:37]} Nxa6 {[%clk 01:20:26]} {[%emt
00:00:51]} 12. a3 {[%clk 01:05:20]} {[%emt 00:00:28]} Be7 {[%clk 01:14:44]}
{[%emt 00:06:12]} 13. b4 {[%clk 01:03:37]} {[%emt 00:02:13]} Nc7 {[%clk
01:06:20]} {[%emt 00:08:53]} 14. Qxd8 {[%clk 00:39:12]} {[%emt 00:24:56]} Bxd8
{[%clk 01:06:44]} {[%emt 00:00:05]} 15. e4 {[%clk 00:39:20]} {[%emt 00:00:22]}
a5 {[%clk 01:05:35]} {[%emt 00:01:39]} 16. b5 {[%clk 00:39:25]} {[%emt
00:00:25]} Rc8 {[%clk 01:04:41]} {[%emt 00:01:24]} 17. Nd4 {[%clk 00:33:33]}
{[%emt 00:06:22]} Be7 {[%clk 01:03:07]} {[%emt 00:02:04]} 18. Na4 {[%clk
00:31:52]} {[%emt 00:02:11]} Nd7 {[%clk 00:59:58]} {[%emt 00:03:39]} 19. Bxc7
{[%clk 00:28:30]} {[%emt 00:03:52]} Rxc7 {[%clk 00:58:52]} {[%emt 00:01:36]} 20.
Nc6 {[%clk 00:28:50]} {[%emt 00:00:09]} Bc5 {[%clk 00:55:38]} {[%emt 00:03:44]}
21. Rfd1 {[%clk 00:22:50]} {[%emt 00:06:31]} f6 {[%clk 00:48:42]} {[%emt
00:07:26]} 22. Kf1 {[%clk 00:21:06]} {[%emt 00:02:14]} Kf7 {[%clk 00:47:27]}
{[%emt 00:01:46]} 23. Rd3 {[%clk 00:19:49]} {[%emt 00:01:46]} Ne5 {[%clk
00:46:19]} {[%emt 00:01:37]} 24. Nxc5 {[%clk 00:19:06]} {[%emt 00:01:14]} bxc5
{[%clk 00:46:12]} {[%emt 00:00:37]} 25. Rc3 {[%clk 00:19:06]} {[%emt 00:00:30]}
Nxc6 {[%clk 00:44:35]} {[%emt 00:02:08]} 26. Rxc5 {[%clk 00:19:27]} {[%emt
00:00:09]} Rfc8 {[%clk 00:45:01]} {[%emt 00:00:04]} 27. Rac1 {[%clk 00:19:45]}
{[%emt 00:00:12]} Ke7 {[%clk 00:45:25]} {[%emt 00:00:06]} 28. bxc6 {[%clk
00:18:52]} {[%emt 00:01:23]} a4 {[%clk 00:45:41]} {[%emt 00:00:13]} 29. Ke2
{[%clk 00:16:01]} {[%emt 00:03:22]} Kd6 {[%clk 00:44:59]} {[%emt 00:01:11]} 30.
Kd3 {[%clk 00:16:10]} {[%emt 00:00:22]} g5 {[%clk 00:44:06]} {[%emt 00:01:23]}
31. f3 {[%clk 00:14:32]} {[%emt 00:02:08]} Rb8 {[%clk 00:43:39]} {[%emt
00:00:57]} 32. R5c3 {[%clk 00:13:53]} {[%emt 00:01:09]} h5 {[%clk 00:41:51]}
{[%emt 00:02:17]} 33. g3 {[%clk 00:13:54]} {[%emt 00:00:29]} e5 {[%emt
00:05:08]} 34. h4 {[%clk 00:12:45]} Rb2 {[%clk 00:36:13]} {[%emt 00:03:10]} 35.
R1c2 {[%clk 00:08:35]} {[%emt 00:04:40]} Rb1 {[%clk 00:34:29]} {[%emt
00:02:14]} 36. Rc1 {[%clk 00:09:00]} {[%emt 00:00:05]} Rb2 {[%clk 00:34:54]}
{[%emt 00:00:05]} 37. hxg5 {[%clk 00:04:19]} {[%emt 00:05:11]} fxg5 {[%clk
00:35:00]} {[%emt 00:00:24]} 38. Rh1 {[%clk 00:04:44]} {[%emt 00:00:05]} Rg2
{[%clk 00:25:46]} {[%emt 00:09:44]} 39. Rxh5 {[%clk 00:04:24]} {[%emt
00:00:50]} Rxg3 {[%clk 00:26:15]} {[%emt 00:00:01]} 40. Rh6+ {[%clk 00:04:00]}
{[%emt 00:00:55]} Ke7 {[%clk 00:26:42]} {[%emt 00:00:02]} 41. Ke3 {[%clk
00:04:08]} {[%emt 00:00:22]} g4 {[%clk 00:25:03]} {[%emt 00:02:09]} 42. Rh7+
{[%clk 00:04:27]} {[%emt 00:00:10]} Kd8 {[%clk 00:25:30]} {[%emt 00:00:04]} 43.
Rd3+ {[%clk 00:04:48]} {[%emt 00:00:10]} Kc8 {[%clk 00:25:56]} {[%emt
00:00:02]} 44. Rh8# {[%clk 00:04:42]} {[%emt 00:00:06]} 1-0

[Event "Schack-SM 2022: Sverigemastarklassen"]
[Site "Fyrishov, Idrottsgatan 2, Uppsala, Sweden"]
[Date "2022.07.03"]
[Round "2.1"]
[White "Cramling, Pia"]
[Black "Johansson, Linus"]
[Result "1/2-1/2"]
[TimeControl "90 minutes for 40 moves + 30 minutes for the rest of the game + 30 seconds per move from move one."]
[WhiteTitle "GM"]
[BlackTitle "IM"]
[WhiteFideId "1700030"]
[BlackFideId "1711113"]
[WhiteElo "2459"]
[BlackElo "2468"]

1. Nf3 {[%clk 01:30:20]} {[%emt 00:00:39]} d5 {[%clk 01:30:39]} {[%emt
00:00:22]} 2. d4 {[%clk 01:30:37]} {[%emt 00:00:13]} Nf6 {[%clk 01:30:53]}
{[%emt 00:00:16]} 3. c4 {[%clk 01:30:48]} {[%emt 00:00:18]} e6 {[%clk
01:31:16]} {[%emt 00:00:08]} 4. Nc3 {[%clk 01:30:39]} {[%emt 00:00:39]} Nbd7
{[%clk 01:31:33]} {[%emt 00:00:13]} 5. cxd5 {[%clk 01:26:46]} {[%emt 00:04:23]}
exd5 {[%clk 01:31:52]} {[%emt 00:00:11]} 6. Bg5 {[%clk 01:25:47]} {[%emt
00:01:29]} c6 {[%clk 01:32:13]} {[%emt 00:00:10]} 7. Qc2 {[%clk 01:25:34]}
{[%emt 00:00:42]} Be7 {[%clk 01:15:34]} {[%emt 00:17:08]} 8. e3 {[%clk
01:24:34]} {[%emt 00:01:31]} Nh5 {[%clk 01:15:44]} {[%emt 00:00:20]} 9. Bxe7
{[%clk 01:10:55]} {[%emt 00:14:09]} Qxe7 {[%clk 01:16:08]} {[%emt 00:00:07]} 10.
O-O-O {[%clk 01:10:17]} {[%emt 00:01:07]} Nb6 {[%clk 01:16:23]} {[%emt
00:00:16]} 11. h3 {[%clk 01:09:48]} {[%emt 00:00:58]} Be6 {[%clk 01:14:51]}
{[%emt 00:02:01]} 12. Bd3 {[%clk 01:08:21]} {[%emt 00:01:57]} O-O-O {[%clk
01:14:01]} {[%emt 00:01:21]} 13. Kb1 {[%clk 01:08:31]} {[%emt 00:00:20]} Kb8
{[%clk 01:14:25]} {[%emt 00:00:06]} 14. Rc1 {[%clk 01:08:21]} {[%emt 00:00:40]}
g6 {[%clk 01:08:45]} {[%emt 00:06:10]} 15. Na4 {[%clk 01:00:24]} {[%emt
00:08:27]} Nxa4 {[%clk 01:09:05]} {[%emt 00:00:11]} 16. Qxa4 {[%clk 01:00:50]}
{[%emt 00:00:03]} Ng7 {[%clk 01:09:13]} {[%emt 00:00:21]} 17. Rc3 {[%clk
00:48:02]} {[%emt 00:13:19]} Bf5 {[%clk 01:01:28]} {[%emt 00:08:15]} 18. Rd1
{[%clk 00:46:45]} {[%emt 00:01:47]} Rc8 {[%clk 00:52:42]} {[%emt 00:09:16]} 19.
Ra3 {[%clk 00:35:31]} {[%emt 00:11:43]} a6 {[%clk 00:51:47]} {[%emt 00:01:25]}
20. Rb3 {[%clk 00:31:40]} {[%emt 00:04:21]} Ka8 {[%clk 00:48:45]} {[%emt
00:03:33]} 21. Qa5 {[%clk 00:29:01]} {[%emt 00:03:09]} Qc7 {[%clk 00:39:10]}
{[%emt 00:10:06]} 22. Qxc7 {[%clk 00:25:10]} {[%emt 00:04:20]} Rxc7 {[%clk
00:39:22]} {[%emt 00:00:17]} 23. Kc2 {[%clk 00:23:55]} {[%emt 00:01:45]} Re7
{[%clk 00:36:53]} {[%emt 00:03:00]} 24. Rc3 {[%clk 00:22:59]} {[%emt 00:01:26]}
Bxd3+ {[%clk 00:35:13]} {[%emt 00:02:10]} 25. Kxd3 {[%clk 00:23:02]} {[%emt
00:00:27]} Nf5 {[%clk 00:35:28]} {[%emt 00:00:14]} 26. a4 {[%clk 00:20:10]}
{[%emt 00:03:23]} Nd6 {[%clk 00:35:18]} {[%emt 00:00:40]} 27. Rc2 {[%clk
00:20:10]} {[%emt 00:00:29]} f6 {[%clk 00:33:50]} {[%emt 00:01:58]} 28. b3
{[%clk 00:16:30]} {[%emt 00:04:11]} Kb8 {[%clk 00:28:28]} {[%emt 00:05:52]} 29.
h4 {[%clk 00:15:33]} {[%emt 00:01:26]} Kc7 {[%clk 00:28:28]} {[%emt 00:00:31]}
30. a5 {[%clk 00:15:15]} {[%emt 00:00:49]} Ne4 {[%clk 00:22:03]} {[%emt
00:06:54]} 31. Ke2 {[%clk 00:14:44]} {[%emt 00:00:59]} h6 {[%clk 00:21:34]}
{[%emt 00:01:01]} 32. Nd2 {[%clk 00:13:41]} {[%emt 00:01:33]} Nxd2 {[%clk
00:20:01]} {[%emt 00:02:04]} 33. Kxd2 {[%clk 00:12:20]} {[%emt 00:01:50]} f5
{[%clk 00:17:46]} {[%emt 00:02:44]} 34. g3 {[%clk 00:11:08]} {[%emt 00:01:42]}
g5 {[%clk 00:16:28]} {[%emt 00:01:48]} 35. Rh1 {[%clk 00:11:13]} {[%emt
00:00:25]} g4 {[%clk 00:16:20]} {[%emt 00:00:39]} 36. Rhc1 {[%clk 00:09:41]}
{[%emt 00:02:01]} Kd6 {[%clk 00:16:28]} {[%emt 00:00:24]} 37. Rc5 {[%clk
00:09:21]} {[%emt 00:00:49]} Rb8 {[%clk 00:15:03]} {[%emt 00:01:55]} 38. Kd3
{[%clk 00:09:00]} {[%emt 00:00:50]} Rh8 {[%clk 00:15:18]} {[%emt 00:00:15]} 39.
R5c2 {[%clk 00:09:01]} {[%emt 00:00:29]} Rb8 {[%clk 00:15:29]} {[%emt
00:00:20]} 40. Rc5 {[%clk 00:09:18]} {[%emt 00:00:12]} Rh8 {[%clk 00:15:50]}
{[%emt 00:00:09]} 41. R5c2 {[%clk 00:09:41]} {[%emt 00:00:07]} Rb8 {[%clk
00:16:14]} {[%emt 00:00:07]} 1/2-1/2